fUST/lending_fUST_20250908
["ID","MTS","AMOUNT","RATE_DAILY","PERIOD"]
[384338691,1757343052080,-480.0,0.00013972,2]
[384338693,1757343052089,-480.0,0.00013972,2]
[384338696,1757343052099,-480.0,0.00013972,2]
[384338697,1757343052108,-480.0,0.00013972,2]
[384338699,1757343052118,-1259.84,0.00013972,2]
[384338702,1757343052128,-480.0,0.00013972,2]
[384338704,1757343052137,-151.0,0.00013972,2]
[384338705,1757343052146,-151.0,0.00013972,2]
[384338707,1757343052156,-480.0,0.00013972,2]
[384338709,1757343052165,-247.58384,0.00013972,2]
[384338711,1757343052175,-480.0,0.00013972,2]
[384338713,1757343052185,-489.98245225,0.00013972,2]
[384338715,1757343052195,-480.0,0.00013972,2]
[384338717,1757343052204,-480.0,0.00013972,2]
[384338719,1757343052214,-480.0,0.00013972,2]
[384338721,1757343052223,-480.0,0.00013972,2]
[384338723,1757343052233,-480.0,0.00013972,2]
[384338725,1757343052242,-480.0,0.00013972,2]
[384338727,1757343052252,-480.0,0.00013972,2]
[384338729,1757343052261,-480.0,0.00013972,2]
[384338731,1757343052270,-480.0,0.00013972,2]
[384338733,1757343052279,-480.0,0.00013972,2]
[384338735,1757343052289,-480.0,0.00013972,2]
[384338737,1757343052299,-480.0,0.00013972,2]
[384338739,1757343052307,-484.57634402,0.00013972,2]
[384338741,1757343052317,-480.0,0.00013972,2]
[384338743,1757343052326,-151.0,0.00013972,2]
[384338745,1757343052336,-151.0,0.00013972,2]
[384338747,1757343052345,-151.0,0.00013972,2]
[384338749,1757343052355,-227.579768,0.00013972,2]
[384338751,1757343052364,-480.0,0.00013972,2]
[384338753,1757343052374,-484.66454614,0.00013972,2]
[384338755,1757343052383,-151.0,0.00013972,2]
[384338757,1757343052392,-245.878304,0.00013972,2]
[384338759,1757343052402,-480.0,0.00013972,2]
[384338761,1757343052412,-480.0,0.00013972,2]
[384338763,1757343052422,-480.0,0.00013972,2]
[384338765,1757343052432,-480.0,0.00013972,2]
[384338767,1757343052442,-532.95,0.00013972,2]
[384338769,1757343052452,-480.0,0.00013972,2]
[384338771,1757343052462,-480.0,0.00013972,2]
[384338773,1757343052472,-924.78,0.00013972,2]
[384338775,1757343052481,-480.0,0.00013972,2]
[384338777,1757343052491,-480.0,0.00013972,2]
[384338779,1757343052501,-480.0,0.00013972,2]
[384338781,1757343052511,-480.0,0.00013972,2]
[384338782,1757343052520,-151.0,0.00013972,2]
[384338783,1757343052530,-151.0,0.00013972,2]
[384338784,1757343052539,-484.5709022,0.00013972,2]
[384338785,1757343052550,-492.09459246,0.00013972,2]
[384338786,1757343052559,-2397.94,0.00013972,2]
[384338787,1757343052570,-480.0,0.00013972,2]
[384338788,1757343052579,-480.0,0.00013972,2]
[384338789,1757343052588,-480.0,0.00013972,2]
[384338790,1757343052597,-480.0,0.00013972,2]
[384338791,1757343052607,-151.0,0.00013972,2]
[384338792,1757343052617,-480.0,0.00013972,2]
[384338793,1757343052627,-151.0,0.00013972,2]
[384338794,1757343052636,-268.175807,0.00013972,2]
[384338795,1757343052646,-151.0,0.00013972,2]
[384338796,1757343052656,-480.0,0.00013972,2]
[384338797,1757343052666,-480.0,0.00013972,2]
[384338798,1757343052676,-480.0,0.00013972,2]
[384338799,1757343052686,-480.0,0.00013972,2]
[384338800,1757343052695,-587.98,0.00013972,2]
[384338801,1757343052705,-480.0,0.00013972,2]
[384338802,1757343052714,-1008.10669318,0.00013972,2]
[384338803,1757343052724,-480.0,0.00013972,2]
[384338804,1757343052733,-480.0,0.00013972,2]
[384338805,1757343052743,-463.11666807,0.00013972,2]
[384338806,1757343052752,-480.0,0.00013972,2]
[384338807,1757343052761,-480.0,0.00013972,2]
[384338808,1757343052770,-480.0,0.00013972,2]
[384338809,1757343052781,-480.0,0.00013972,2]
[384338810,1757343052790,-424.07452718,0.00013972,2]
[384338811,1757343052800,-480.0,0.00013972,2]
[384338812,1757343052810,-480.0,0.00013972,2]
[384338813,1757343052819,-480.0,0.00013972,2]
[384338814,1757343052829,-480.0,0.00013972,2]
[384338815,1757343052838,-151.0,0.00013972,2]
[384338816,1757343052847,-151.0,0.00013972,2]
[384338817,1757343052856,-473.70932456,0.00013972,2]
[384338818,1757343052865,-480.0,0.00013972,2]
[384338819,1757343052875,-480.0,0.00013972,2]
[384338820,1757343052884,-863.37,0.00013972,2]
[384338821,1757343052893,-480.0,0.00013972,2]
[384338822,1757343052902,-480.0,0.00013972,2]
[384338823,1757343052915,-480.0,0.00013972,2]
[384338824,1757343052925,-480.0,0.00013972,2]
[384338825,1757343052934,-151.0,0.00013972,2]
[384338826,1757343052943,-151.0,0.00013972,2]
[384338827,1757343052953,-480.0,0.00013972,2]
[384338828,1757343052962,-480.0,0.00013972,2]
[384338829,1757343052971,-490.39354332,0.00013972,2]
[384338830,1757343052980,-480.0,0.00013972,2]
[384338831,1757343052992,-481.9634521,0.00013972,2]
[384338832,1757343053002,-480.0,0.00013972,2]
[384338833,1757343053011,-480.0,0.00013972,2]
[384338834,1757343053021,-480.0,0.00013972,2]
[384338835,1757343053030,-480.0,0.00013972,2]
[384338836,1757343053039,-600.21822192,0.00013972,2]
[384338837,1757343053048,-480.0,0.00013972,2]
[384338838,1757343053057,-480.0,0.00013972,2]
[384338839,1757343053067,-195.63280249,0.00013972,2]
[384338840,1757343053076,-480.0,0.00013972,2]
[384338841,1757343053085,-480.0,0.00013972,2]
[384338842,1757343053094,-561.13,0.00013972,2]
[384338843,1757343053104,-480.0,0.00013972,2]
[384338844,1757343053113,-209.79649497,0.00013972,2]
[384338845,1757343053123,-480.0,0.00013972,2]
[384338846,1757343053133,-480.0,0.00013972,2]
[384338847,1757343053142,-480.0,0.00013972,2]
[384338848,1757343053151,-480.0,0.00013972,2]
[384338849,1757343053160,-151.0,0.00013972,2]
[384338850,1757343053170,-151.0,0.00013972,2]
[384338851,1757343053179,-480.0,0.00013972,2]
[384338852,1757343053189,-480.0,0.00013972,2]
[384338853,1757343053198,-480.0,0.00013972,2]
[384338854,1757343053208,-480.0,0.00013972,2]
[384338855,1757343053216,-483.07171759,0.00013972,2]
[384338856,1757343053226,-220.203704,0.00013972,2]
[384338857,1757343053235,-220.203704,0.00013972,2]
[384338858,1757343053245,-480.0,0.00013972,2]
[384338859,1757343053255,-480.0,0.00013972,2]
[384338860,1757343053264,-220.203704,0.00013972,2]
[384338861,1757343053274,-220.203704,0.00013972,2]
[384338862,1757343053283,-480.0,0.00013972,2]
[384338863,1757343053292,-480.0,0.00013972,2]
[384338864,1757343053302,-220.203704,0.00013972,2]
[384338865,1757343053311,-480.0,0.00013972,2]
[384338866,1757343053321,-480.0,0.00013972,2]
[384338867,1757343053330,-220.203704,0.00013972,2]
[384338868,1757343053340,-480.0,0.00013972,2]
[384338869,1757343053349,-220.203704,0.00013972,2]
[384338870,1757343053359,-220.203704,0.00013972,2]
[384338871,1757343053368,-480.0,0.00013972,2]
[384338872,1757343053378,-583.06604095,0.00013972,2]
[384338873,1757343053387,-482.12956124,0.00013972,2]
[384338874,1757343053396,-483.39091013,0.00013972,2]
[384338875,1757343053406,-480.0,0.00013972,2]
[384338876,1757343053416,-480.0,0.00013972,2]
[384338877,1757343053425,-480.0,0.00013972,2]
[384338878,1757343053435,-480.0,0.00013972,2]
[384338879,1757343053444,-480.0,0.00013972,2]
[384338880,1757343053454,-485.18643052,0.00013972,2]
[384338881,1757343053463,-480.0,0.00013972,2]
[384338882,1757343053472,-480.0,0.00013972,2]
[384338883,1757343053482,-1368.23,0.00013972,2]
[384338884,1757343053491,-480.0,0.00013972,2]
[384338885,1757343053500,-480.0,0.00013972,2]
[384338886,1757343053510,-480.0,0.00013972,2]
[384338887,1757343053519,-480.0,0.00013972,2]
[384338888,1757343053529,-481.95129524,0.00013972,2]
[384338889,1757343053538,-480.0,0.00013972,2]
[384338890,1757343053547,-480.0,0.00013972,2]
[384338891,1757343053557,-480.0,0.00013972,2]
[384338892,1757343053566,-480.0,0.00013972,2]
[384338893,1757343053576,-480.0,0.00013972,2]
[384338894,1757343053585,-480.0,0.00013972,2]
[384338895,1757343053595,-480.0,0.00013972,2]
[384338896,1757343053605,-480.0,0.00013972,2]
[384338897,1757343053615,-151.0,0.00013972,2]
[384338898,1757343053625,-480.0,0.00013972,2]
[384338899,1757343053635,-151.0,0.00013972,2]
[384338900,1757343053645,-480.0,0.00013972,2]
[384338901,1757343053654,-480.0,0.00013972,2]
[384338902,1757343053664,-151.0,0.00013972,2]
[384338903,1757343053674,-480.0,0.00013972,2]
[384338904,1757343053683,-480.0,0.00013972,2]
[384338905,1757343053692,-1057.48,0.00013972,2]
[384338906,1757343053702,-480.0,0.00013972,2]
[384338907,1757343053711,-480.0,0.00013972,2]
[384338908,1757343053721,-480.0,0.00013972,2]
[384338909,1757343053731,-480.0,0.00013972,2]
[384338911,1757343053740,-480.0,0.00013972,2]
[384338912,1757343053750,-484.64116382,0.00013972,2]
[384338913,1757343053759,-382.85148624,0.00013972,2]
[384338915,1757343053768,-480.0,0.00013972,2]
[384338916,1757343053778,-500.0,0.00013973,2]
[384338917,1757343053788,-160.0278192,0.00013973,2]
[384338918,1757343053798,-500.0,0.00013973,2]
[384338919,1757343053807,-500.0,0.00013973,2]
[384338920,1757343053816,-160.42788874,0.00013973,2]
[384338921,1757343053826,-500.0,0.00013973,2]
[384338922,1757343053836,-500.0,0.00013973,2]
[384338923,1757343053846,-151.0,0.00013973,2]
[384338924,1757343053855,-151.0,0.00013973,2]
[384338925,1757343053865,-241.6,0.00013973,2]
[384338926,1757343053875,-500.0,0.0001399,2]
[384338927,1757343053884,-6115.6054909,0.0001399,2]
[384338937,1757343054449,-500.0,0.00013393,2]
[384338938,1757343054459,-500.0,0.00013393,2]
[384338939,1757343054469,-500.0,0.00013393,2]
[384338940,1757343054478,-500.0,0.00013393,2]
[384338941,1757343054488,-193.64910107,0.00013393,2]
[384338942,1757343054497,-500.0,0.00013393,2]
[384338943,1757343054507,-500.0,0.00013393,2]
[384338944,1757343054517,-500.0,0.00013393,2]
[384338945,1757343054526,-500.0,0.00013393,2]
[384338946,1757343054536,-51162.43935073,0.0001399,2]
[384338947,1757343054547,-742.66688904,0.0001399,2]
[384338949,1757343054808,1000.0,0.0001242,2]
[384338963,1757343055112,-13282.72525915,0.00013256,2]
[384338964,1757343055124,-289.48348961,0.00013256,2]
[384338965,1757343055142,-4674.56633519,0.00013256,2]
[384338966,1757343055153,-1050.03621275,0.00013256,2]
[384338967,1757343055270,-166.45422617,0.00013256,2]
[384338968,1757343055280,-1525.38105888,0.00013342,2]
[384338969,1757343055290,-341.46934242,0.00013698,2]
[384338970,1757343055299,-6626.69537255,0.0001399,2]
[384338971,1757343055310,-453.0,0.0001399,2]
[384338972,1757343055321,-22026.0,0.0001399,2]
[384338973,1757343055339,-580.56391773,0.0001399,2]
[384338974,1757343055772,1000.0,0.00012296,2]
[384338975,1757343069235,-168.7742141,0.00013178,2]
[384338976,1757343074003,-152.41223673,0.00013178,2]
[384338977,1757343076496,167.3906611,0.00012693,2]
[384338978,1757343077838,478.81354917,0.00013046,2]
[384338979,1757343087683,152.41223673,0.00013046,2]
[384338980,1757343103777,478.81354917,0.00013046,2]
[384338981,1757343106495,220.613349,0.00012912,2]
[384338982,1757343106841,220.613349,0.00012959,2]
[384338983,1757343107222,275.766686,0.00012991,2]
[384338984,1757343107827,176.32708636,0.00013052,2]
[384338985,1757343127495,666.0,0.00012469,2]
[384338986,1757343128231,478.81354917,0.00013046,2]
[384338988,1757343152607,478.81354917,0.00013046,2]
[384338989,1757343175439,478.81354917,0.00013046,2]
[384338990,1757343199165,478.81354917,0.00013046,2]
[384338991,1757343222482,478.81354917,0.00013046,2]
[384338992,1757343246661,478.81354917,0.00013046,2]
[384338993,1757343263988,478.81354917,0.00013046,2]
[384338994,1757343273862,1334.70842652,0.00013066,2]
[384338995,1757343291494,1334.70842652,0.00013066,2]
[384338996,1757343300536,1334.70842652,0.00013066,2]
[384338997,1757343317171,1334.70842652,0.00013066,2]
[384338998,1757343325473,1334.70842652,0.00013066,2]
[384338999,1757343342591,2096.980235,0.00013066,2]
[384339000,1757343350813,2096.980235,0.00013066,2]
[384339001,1757343367459,762.27180848,0.00013066,2]
[384339002,1757343376620,762.27180848,0.00013066,2]
[384339003,1757343393556,762.27180848,0.00013066,2]
[384339004,1757343401705,762.27180848,0.00013066,2]
[384339005,1757343418034,762.27180848,0.00013066,2]
[384339006,1757343428974,762.27180848,0.00013066,2]
[384339009,1757343445643,1334.70842652,0.00013065,2]
[384339010,1757343454442,1334.70842652,0.00013065,2]
[384339012,1757343471466,1334.70842652,0.00013065,2]
[384339013,1757343480141,1334.70842652,0.00013065,2]
[384339014,1757343489039,10000.0,0.00012297,2]
[384339015,1757343498127,1334.70842652,0.00013065,2]
[384339016,1757343506488,1334.70842652,0.00013065,2]
[384339017,1757343522832,1334.70842652,0.00013065,2]
[384339018,1757343531556,1334.70842652,0.00013065,2]
[384339038,1757343548310,1334.70842652,0.00013065,2]
[384339039,1757343556970,1334.70842652,0.00013065,2]
[384339040,1757343573327,762.27180848,0.00013066,2]
[384339041,1757343582699,762.27180848,0.00013066,2]
[384339042,1757343599199,762.27180848,0.00013066,2]
[384339043,1757343607897,762.27180848,0.00013066,2]
[384339044,1757343625336,762.27180848,0.00013066,2]
[384339045,1757343634541,1334.70842652,0.00013065,2]
[384339046,1757343652399,1334.70842652,0.00013065,2]
[384339047,1757343661232,1334.70842652,0.00013065,2]
[384339049,1757343662579,10000.0,0.00028769,60]
[384339050,1757343665791,640.44864252,0.00013066,2]
[384339051,1757343678236,1334.70842652,0.00013065,2]
[384339052,1757343686887,1334.70842652,0.00013065,2]
[384339053,1757343702632,4312.68264702,0.00012935,2]
[384339054,1757343704951,7666.99137248,0.00012935,2]
[384339055,1757343705526,1334.70842652,0.00013065,2]
[384339057,1757343715223,1334.70842652,0.00013065,2]
[384339059,1757343732415,1334.70842652,0.00013065,2]
[384339061,1757343741033,1334.70842652,0.00013065,2]
[384339062,1757343757064,797.16371932,0.00013079,2]
[384339063,1757343765146,797.16371932,0.00013079,2]
[384339066,1757343781748,797.16371932,0.00013079,2]
[384339067,1757343790172,797.16371932,0.00013079,2]
[384339068,1757343807648,797.16371932,0.00013079,2]
[384339069,1757343816992,797.16371932,0.00013079,2]
[384339070,1757343833577,1334.70842652,0.00013076,2]
[384339071,1757343843599,1334.70842652,0.00013076,2]
[384339072,1757343860397,1334.70842652,0.00013076,2]
[384339073,1757343861071,10000.0,0.00025,30]
[384339074,1757343868605,10000.0,0.00025,30]
[384339075,1757343868878,1334.70842652,0.00013076,2]
[384339076,1757343885062,1334.70842652,0.00013076,2]
[384339077,1757343893523,1334.70842652,0.00013076,2]
[384339095,1757343910890,1334.70842652,0.00013076,2]
[384339098,1757343919544,1334.70842652,0.00013076,2]
[384339099,1757343921008,613.53447149,0.00012935,2]
[384339100,1757343923350,2451.68374807,0.00012935,2]
[384339101,1757343925423,934.00485322,0.00013071,2]
[384339102,1757343927236,3732.28339347,0.00013071,2]
[384339105,1757343937351,1334.70842652,0.00013076,2]
[384339106,1757343946462,1334.70842652,0.00013076,2]
[384339108,1757343964737,797.16371932,0.00013079,2]
[384339109,1757343966889,808.28956952,0.00013079,2]
[384339110,1757343973463,797.16371932,0.00013079,2]
[384339112,1757343990412,797.16371932,0.00013079,2]
[384339113,1757343999611,1116.89802224,0.00013121,2]
[384339114,1757344000834,1000.0,0.00012291,2]
[384339115,1757344009529,5307.48956531,0.0001259,2]
[384339117,1757344016328,1305.0060752,0.00013113,2]
[384339118,1757344040943,1334.70842652,0.00013058,2]
[384339120,1757344066067,1334.70842652,0.00013058,2]
[384339124,1757344091784,1334.70842652,0.00013058,2]
[384339126,1757344110649,666.0,0.00012289,2]
[384339127,1757344111568,335.94,0.00025,30]
[384339128,1757344116867,1334.70842652,0.00013058,2]
[384339130,1757344141182,1334.70842652,0.00013058,2]
[384339132,1757344166903,1305.0060752,0.00013113,2]
[384339136,1757344191600,1305.0060752,0.00013113,2]
[384339137,1757344193447,9700.0,0.00025,30]
[384339139,1757344216481,1305.0060752,0.00013113,2]
[384339140,1757344228444,4073.78524724,0.00012787,3]
[384339184,1757344232604,-1334.70842652,0.00013189,2]
[384339186,1757344232613,-1305.0060752,0.00013245,2]
[384339187,1757344232623,-250.65364145,0.00013259,2]
[384339188,1757344232632,-166.0,0.00013272,2]
[384339189,1757344232642,-300.0,0.00013272,2]
[384339190,1757344232652,-300.0,0.00013272,2]
[384339191,1757344232661,-300.0,0.00013272,2]
[384339192,1757344232671,-1200.0,0.00013272,2]
[384339193,1757344232680,-300.0,0.00013272,2]
[384339194,1757344232689,-500.0,0.00013273,2]
[384339195,1757344232700,-500.0,0.00013273,2]
[384339197,1757344232709,-505.09367569,0.00013273,2]
[384339199,1757344232719,-500.0,0.00013273,2]
[384339200,1757344232729,-501.02794123,0.00013273,2]
[384339202,1757344232738,-500.73139972,0.00013273,2]
[384339204,1757344232748,-504.43838053,0.00013273,2]
[384339206,1757344232757,-503.0665566,0.00013273,2]
[384339208,1757344232767,-500.0,0.00013273,2]
[384339210,1757344232777,-500.0,0.00013273,2]
[384339212,1757344232786,-1200.0,0.00013288,2]
[384339214,1757344232796,-37689.62437467,0.00013289,2]
[384339217,1757344232814,-666.0,0.00013289,2]
[384339219,1757344232825,-11644.37562533,0.00013289,2]
[384339221,1757344232834,-500.0,0.00013289,2]
[384339223,1757344232844,-500.0,0.00013289,2]
[384339226,1757344232854,-500.0,0.00013289,2]
[384339229,1757344232863,-500.0,0.00013289,2]
[384339232,1757344232872,-500.0,0.00013289,2]
[384339235,1757344232881,-449.88113442,0.00013289,2]
[384339238,1757344232891,-500.0,0.00013289,2]
[384339240,1757344232900,-500.0,0.00013289,2]
[384339242,1757344232909,-500.0,0.00013289,2]
[384339244,1757344232919,-500.0,0.00013289,2]
[384339247,1757344232932,-500.0,0.00013289,2]
[384339249,1757344232942,-500.0,0.00013289,2]
[384339251,1757344232952,-500.0,0.00013289,2]
[384339253,1757344232961,-500.0,0.00013289,2]
[384339255,1757344232971,-500.0,0.00013289,2]
[384339257,1757344232981,-500.0,0.00013289,2]
[384339259,1757344232990,-151.0,0.0001329,2]
[384339261,1757344232999,-151.0,0.0001329,2]
[384339263,1757344233009,-151.0,0.0001329,2]
[384339265,1757344233018,-151.0,0.0001329,2]
[384339267,1757344233028,-266.59472809,0.0001329,2]
[384339269,1757344233037,-151.0,0.0001329,2]
[384339271,1757344233048,-18603.8837,0.0001329,2]
[384339273,1757344233058,-153.58271407,0.0001329,2]
[384339275,1757344233068,-151.0,0.0001329,2]
[384339277,1757344233081,-151.0,0.0001329,2]
[384339279,1757344233092,-151.0,0.0001329,2]
[384339281,1757344233102,-151.0,0.0001329,2]
[384339283,1757344233112,-151.0,0.0001329,2]
[384339286,1757344233122,-151.0,0.0001329,2]
[384339288,1757344233132,-250.0,0.0001329,2]
[384339289,1757344233142,-151.0,0.0001329,2]
[384339292,1757344233153,-151.0,0.0001329,2]
[384339294,1757344233162,-178.57357894,0.0001329,2]
[384339296,1757344233172,-151.0,0.0001329,2]
[384339298,1757344233182,-250.0,0.0001329,2]
[384339299,1757344233192,-151.0,0.0001329,2]
[384339300,1757344233202,-151.0,0.0001329,2]
[384339301,1757344233212,-151.0,0.0001329,2]
[384339302,1757344233222,-151.0,0.0001329,2]
[384339303,1757344233232,-151.0,0.0001329,2]
[384339304,1757344233243,-151.0,0.0001329,2]
[384339305,1757344233253,-250.0,0.0001329,2]
[384339306,1757344233263,-151.0,0.0001329,2]
[384339307,1757344233273,-151.0,0.0001329,2]
[384339308,1757344233284,-250.0,0.0001329,2]
[384339309,1757344233295,-151.0,0.0001329,2]
[384339310,1757344233305,-151.0,0.0001329,2]
[384339311,1757344233315,-250.0,0.0001329,2]
[384339312,1757344233327,-151.0,0.0001329,2]
[384339313,1757344233339,-151.0,0.0001329,2]
[384339314,1757344233349,-250.0,0.0001329,2]
[384339315,1757344233359,-151.0,0.0001329,2]
[384339316,1757344233370,-151.0,0.0001329,2]
[384339317,1757344233380,-514.21527815,0.0001329,2]
[384339318,1757344233390,-250.0,0.0001329,2]
[384339319,1757344233400,-151.0,0.0001329,2]
[384339320,1757344233410,-202.50353211,0.0001329,2]
[384339321,1757344233420,-250.0,0.0001329,2]
[384339322,1757344233430,-151.0,0.0001329,2]
[384339323,1757344233440,-2030.296672,0.0001329,2]
[384339324,1757344233449,-151.0,0.0001329,2]
[384339325,1757344233459,-250.0,0.0001329,2]
[384339326,1757344233469,-514.35169207,0.0001329,2]
[384339327,1757344233478,-250.0,0.0001329,2]
[384339328,1757344233488,-151.0,0.0001329,2]
[384339329,1757344233497,-151.0,0.0001329,2]
[384339330,1757344233507,-250.0,0.0001329,2]
[384339331,1757344233516,-151.0,0.0001329,2]
[384339332,1757344233526,-308.3926338,0.0001329,2]
[384339333,1757344233536,-151.0,0.0001329,2]
[384339334,1757344233545,-151.0,0.0001329,2]
[384339335,1757344233554,-151.0,0.0001329,2]
[384339336,1757344233564,-151.0,0.0001329,2]
[384339337,1757344233573,-1000.0,0.0001329,2]
[384339338,1757344233583,-1000.0,0.0001329,2]
[384339339,1757344233592,-1000.0,0.0001329,2]
[384339340,1757344233602,-1000.0,0.0001329,2]
[384339341,1757344233611,-1000.0,0.0001329,2]
[384339342,1757344233621,-1000.0,0.0001329,2]
[384339343,1757344233630,-1000.0,0.0001329,2]
[384339344,1757344233640,-1000.0,0.0001329,2]
[384339345,1757344233650,-500.0,0.00013297,2]
[384339346,1757344233661,-478.56156856,0.00013297,2]
[384339347,1757344233671,-247.41844013,0.00013297,2]
[384339348,1757344233681,-225166.6801208,0.00013298,2]
[384339385,1757344238627,-471.54538709,0.0001329,2]
[384339387,1757344238640,-528.45461291,0.0001329,2]
[384339388,1757344238650,-372.21704297,0.0001329,2]
[384339389,1757344238661,-627.78295703,0.0001329,2]
[384339390,1757344238671,-1000.0,0.0001329,2]
[384339391,1757344238680,-164.00050268,0.0001329,2]
[384339392,1757344238692,-835.99949732,0.0001329,2]
[384339393,1757344238702,-1000.0,0.0001329,2]
[384339394,1757344238712,-634.67007198,0.0001329,2]
[384339395,1757344238724,-365.32992802,0.0001329,2]
[384339396,1757344238734,-325.17873856,0.0001329,2]
[384339397,1757344238746,-618.44922971,0.0001329,2]
[384339398,1757344238758,-56.37203173,0.0001329,2]
[384339399,1757344238767,-3621.31636691,0.00013298,2]
[384339400,1757344238786,-9505.9232018,0.00013298,2]
[384339401,1757344238797,-12500.7717839,0.00013298,2]
[384339441,1757344240887,-507.34145989,0.0001329,2]
[384339452,1757344241008,-492.65854011,0.0001329,2]
[384339454,1757344241017,-1000.0,0.0001329,2]
[384339456,1757344241027,-1000.0,0.0001329,2]
[384339458,1757344241036,-29595.48122614,0.00013298,2]
[384339645,1757344243323,2000.0,0.00013157,2]
[384339691,1757344243777,-670.0047207,0.0001329,2]
[384339996,1757344246794,-329.9952793,0.0001329,2]
[384339998,1757344246804,-879.13168041,0.0001329,2]
[384340000,1757344246815,-120.86831959,0.0001329,2]
[384340003,1757344246825,-446.68168041,0.00013298,2]
[384340291,1757344268526,300.0,0.00013164,2]
[384340292,1757344271048,206.24,0.00027397,120]
[384340293,1757344292752,300.0,0.00013164,2]
[384340294,1757344309103,261.29934794,0.00012899,2]
[384340295,1757344311959,599.51233438,0.00012857,2]
[384340296,1757344314077,2395.65128818,0.00012857,2]
[384340297,1757344316136,300.0,0.00013164,2]
[384340298,1757344341117,1200.0,0.00013163,2]
[384340299,1757344365096,1246.02186953,0.00013066,2]
[384340300,1757344390204,1246.02186953,0.00013066,2]
[384340321,1757344415126,2413.89174277,0.00013066,2]
[384340322,1757344433445,10000.0,0.00012307,2]
[384340323,1757344440168,54447.12550465,0.00013058,2]
[384340325,1757344531778,451.89504603,0.00012857,2]
[384340326,1757344533586,1805.77260394,0.00012857,2]
[384340330,1757344824328,776.26101282,0.00013012,2]
[384340331,1757344826856,3105.04405129,0.00013012,2]
[384340332,1757344829316,6986.3491154,0.00013012,2]
[384340339,1757344883153,1167.86987324,0.00013098,2]
[384340340,1757344964301,1000.0,0.00012243,2]
[384340341,1757345042150,1246.02186953,0.00013137,2]
[384340343,1757345071458,-1200.0,0.00013181,2]
[384340344,1757345071490,-300.0,0.00013181,2]
[384340345,1757345071521,-151.0,0.00013182,2]
[384340346,1757345071541,-1200.0,0.00013182,2]
[384340347,1757345071553,-300.0,0.00013182,2]
[384340348,1757345071565,-151.0,0.00013182,2]
[384340349,1757345071577,-6698.01,0.00013182,2]
[384340350,1757345071610,-10000.01,0.00013182,2]
[384340351,1757345071750,-90.97608962,0.00013182,2]
[384340352,1757345071783,-151.0,0.00013182,2]
[384340353,1757345071815,-151.0,0.00013182,2]
[384340354,1757345071845,-151.0,0.00013182,2]
[384340355,1757345071876,-151.0,0.00013182,2]
[384340356,1757345071906,-151.0,0.00013182,2]
[384340357,1757345071939,-151.0,0.00013182,2]
[384340358,1757345071971,-151.0,0.00013182,2]
[384340359,1757345072003,-151.0,0.00013182,2]
[384340360,1757345072033,-151.0,0.00013182,2]
[384340361,1757345072064,-151.0,0.00013182,2]
[384340362,1757345072095,-2030.296672,0.00013182,2]
[384340363,1757345072125,-151.0,0.00013182,2]
[384340364,1757345072157,-151.0,0.00013182,2]
[384340365,1757345072189,-151.0,0.00013182,2]
[384340366,1757345072219,-151.0,0.00013182,2]
[384340367,1757345072248,-151.0,0.00013182,2]
[384340368,1757345072279,-151.0,0.00013182,2]
[384340369,1757345072309,-151.0,0.00013182,2]